bitfinex/quotes_BTCUSD_20220211
["timestamp","ask_amount","ask_price","bid_price","bid_amount"]
[1644570474601,0.19507141,43216.0,43204.0,0.0463]
[1644570474801,0.77921662,43218.0,43204.0,0.0463]
[1644570474802,0.55657141,43218.0,43204.0,0.0463]
[1644570474999,0.55657141,43218.0,43208.0,0.057883]
[1644570475000,0.3615,43218.0,43208.0,0.057883]
[1644570475199,0.3,43221.0,43209.0,0.0463]
[1644570475400,0.19223977,43217.0,43207.0,0.00052654]
[1644570475599,0.37453814,43213.0,43209.0,0.00701275]
[1644570475802,0.37453814,43213.0,43210.0,0.0463]
[1644570476300,0.3,43219.0,43210.0,0.0463]
[1644570476301,0.19507141,43223.0,43210.0,0.0463]
[1644570476501,0.24400562,43225.0,43210.0,0.0463]
[1644570476502,0.3,43224.0,43210.0,0.0463]
[1644570476702,0.00062158,43226.0,43210.0,0.154177]
[1644570476900,0.00062158,43226.0,43210.0,0.204177]
[1644570477101,0.00062158,43226.0,43210.0,0.1463]
[1644570477300,0.00062158,43226.0,43221.0,0.07014001]
[1644570477301,0.3212829,43224.0,43221.0,0.07014001]
[1644570477600,0.3212829,43224.0,43221.0,0.12014001]
[1644570477799,0.30721867,43225.0,43221.0,0.12014001]
[1644570478001,0.00062141,43226.0,43221.0,0.0405381]
[1644570478456,0.00062141,43226.0,43222.0,0.43042334]
[1644570478648,0.19529099,43233.0,43222.0,0.100462]
[1644570478848,0.30645809,43230.0,43222.0,0.100462]
[1644570479048,0.00062106,43226.0,43223.0,0.322872]
[1644570479249,0.00062106,43226.0,43224.0,0.0426]
[1644570479448,0.00062106,43226.0,43224.0,0.100458]
[1644570479648,0.00062106,43226.0,43225.0,0.322855]
[1644570479849,0.30645809,43230.0,43226.0,0.057859]
[1644570480048,0.00062106,43227.0,43226.0,0.057859]
[1644570480251,0.00062106,43227.0,43226.0,0.380704]
[1644570480649,0.00062106,43227.0,43226.0,0.322845]
[1644570480851,0.00062106,43227.0,43225.0,0.0426]
[1644570481053,0.35826262,43232.0,43225.0,0.0426]
[1644570481251,0.00062108,43229.0,43225.0,0.100459]
[1644570482298,0.08702407,43234.0,43225.0,0.100459]
[1644570482299,0.19529099,43234.0,43225.0,0.100456]
[1644570482503,0.09066757,43240.0,43225.0,0.150456]
[1644570482504,0.00062113,43229.0,43225.0,0.150456]
[1644570482699,0.00062113,43229.0,43226.0,0.372846]
[1644570482898,0.0015043,43237.0,43228.0,0.322825]
[1644570483098,0.0015043,43237.0,43229.0,0.0426]
[1644570483298,0.35014545,43236.0,43230.0,0.0426]
[1644570483701,0.35014545,43236.0,43230.0,0.158279]
[1644570484598,0.3500137,43236.0,43230.0,0.158279]
[1644570484800,3.83081145,43241.0,43232.0,0.057843]
[1644570484999,0.00046403,43239.0,43233.0,0.158286]
[1644570485198,0.00046403,43239.0,43234.0,0.05]
[1644570485399,0.00046403,43239.0,43235.0,0.0426]
[1644570485851,0.21896133,43243.0,43235.0,0.0426]
[1644570486150,0.00065298,43239.0,43235.0,0.10044]
[1644570486353,0.00065298,43239.0,43236.0,0.322762]
[1644570486551,0.00065298,43239.0,43237.0,0.0426]
[1644570486750,0.00065298,43239.0,43238.0,0.322741]
[1644570486949,0.31120856,43239.0,43238.0,0.415341]
[1644570487150,0.03,43243.0,43238.0,0.415341]
[1644570487350,0.00065297,43240.0,43238.0,0.15044]
[1644570487551,0.00065297,43240.0,43239.0,0.32273]
[1644570487751,0.00065297,43240.0,43239.0,0.36533]
[1644570488354,0.29241935,43243.0,43240.0,0.057839]
[1644570488556,0.00065069,43242.0,43241.0,0.0426]
[1644570489601,0.29234829,43243.0,43241.0,0.0426]
[1644570490197,0.03,43243.0,43241.0,0.0426]
[1644570496355,0.03,43243.0,43236.0,0.05]
[1644570496556,0.03,43243.0,43238.0,0.322739]
[1644570496758,0.03,43243.0,43239.0,0.36533]
[1644570496995,0.00065161,43242.0,43239.0,0.36533]
[1644570497198,0.00065161,43242.0,43240.0,0.32314231]
[1644570497498,0.00065161,43242.0,43241.0,0.365314]
[1644570497700,0.00065161,43242.0,43241.0,0.76471149]
[1644570497997,0.03,43243.0,43242.0,0.322705]
[1644570498197,0.03,43243.0,43242.0,0.73596127]
[1644570498397,0.03,43243.0,43242.0,0.415305]
[1644570499799,0.03,43243.0,43242.0,0.03055918]
[1644570500001,0.03,43243.0,43235.0,0.60210736]
[1644570500002,0.03,43243.0,43220.0,0.0405381]
[1644570500198,0.32274603,43234.0,43233.0,0.0426]
[1644570500655,0.00023782,43242.0,43232.0,0.00063132]
[1644570500846,0.12073383,43243.0,43232.0,0.00063132]
[1644570500847,0.17881973,43243.0,43232.0,0.00063132]
[1644570501050,0.08981418,43242.0,43232.0,0.05847632]
[1644570501251,0.08957636,43242.0,43232.0,0.05847632]
[1644570501453,0.08981418,43242.0,43233.0,0.057842]
[1644570501647,0.08981418,43242.0,43233.0,0.107842]
[1644570501648,0.32359802,43240.0,43233.0,0.107842]
[1644570501848,0.00065079,43239.0,43233.0,0.057842]
[1644570502050,0.00065079,43239.0,43232.0,0.21631632]
[1644570502449,0.00065079,43239.0,43233.0,0.057849]
[1644570502648,0.32359802,43240.0,43232.0,0.1]
[1644570502951,0.00065083,43239.0,43232.0,0.00063132]
[1644570503948,0.32359802,43240.0,43233.0,0.05785]
[1644570504150,0.3689552,43235.0,43232.0,0.00063132]
[1644570504401,0.322991,43234.0,43232.0,0.00063132]
[1644570504799,0.25104239,43233.0,43232.0,0.00063132]
[1644570505000,0.57403339,43233.0,43232.0,0.00063132]
[1644570505199,0.57403339,43233.0,43215.0,0.21497233]
[1644570505200,0.37348283,43225.0,43216.0,0.4562641]
[1644570505400,0.40729101,43227.0,43220.0,0.115722]
[1644570505601,0.25104239,43233.0,43220.0,0.115722]
[1644570506501,0.25104239,43233.0,43224.0,0.00063144]
[1644570506806,0.34549079,43225.0,43224.0,0.00063144]
[1644570507203,0.08182079,43225.0,43224.0,0.00063144]
[1644570507402,0.64678071,43226.0,43224.0,0.00063144]
[1644570507403,0.40916388,43226.0,43224.0,0.00063144]
[1644570507701,0.35129217,43226.0,43222.0,0.05849947]
[1644570507902,0.35129217,43226.0,43222.0,0.00063147]
[1644570508165,0.49984607,43226.0,43222.0,0.00063147]
[1644570508646,0.49984607,43226.0,43211.0,4.16613449]
[1644570508846,0.44197497,43226.0,43222.0,0.00063148]
[1644570509050,0.25744927,43223.0,43222.0,0.00063148]
[1644570509252,0.58044027,43223.0,43222.0,0.00063148]
[1644570509851,0.58044027,43223.0,43207.0,0.3]
[1644570510050,0.58044027,43223.0,43204.0,0.22646795]
[1644570510051,0.31790349,43214.0,43204.0,0.22646795]
[1644570510249,0.08678414,43213.0,43204.0,0.22646795]
[1644570510448,0.08678414,43213.0,43204.0,0.1]
[1644570510648,0.08678414,43213.0,43204.0,0.05]
[1644570510849,0.08678414,43213.0,43209.0,0.057884]
[1644570511050,0.32494478,43215.0,43209.0,0.057884]
[1644570511651,0.32494478,43215.0,43208.0,0.1]
[1644570511901,0.31952999,43212.0,43208.0,0.05]
[1644570512103,0.31952999,43212.0,43209.0,0.057883]
[1644570513205,0.31952999,43212.0,43208.0,0.05063168]
[1644570513603,0.31952999,43212.0,43208.0,0.05]
[1644570513803,0.31952999,43212.0,43208.0,0.05063168]
[1644570514904,0.31952999,43212.0,43208.0,0.05]
[1644570515107,0.32494478,43215.0,43208.0,0.05]
[1644570515307,0.32494478,43215.0,43209.0,0.057884]
[1644570515506,0.05788228,43219.0,43209.0,0.057884]
[1644570515751,0.057886,43219.0,43208.0,0.05]
[1644570515951,0.057886,43219.0,43206.0,0.05]
[1644570515952,0.17366236,43219.0,43206.0,0.05]
[1644570516150,0.17366236,43219.0,43212.0,0.00063267]
[1644570516151,0.38995945,43216.0,43212.0,0.00063267]
[1644570516952,0.33207389,43216.0,43212.0,0.00063267]
[1644570517153,0.33207389,43216.0,43206.0,0.1]
[1644570517353,0.27364692,43222.0,43212.0,0.00063267]
[1644570517354,0.0578802,43222.0,43212.0,0.00063267]
[1644570517553,0.3722,43229.0,43212.0,0.00063267]
[1644570517760,0.3722,43229.0,43213.0,0.0426]
[1644570517953,0.3858,43230.0,43213.0,0.0426]
[1644570518353,0.33499254,43219.0,43213.0,0.0426]
[1644570518555,0.32987893,43223.0,43215.0,0.057871]
[1644570518957,0.2598973,43226.0,43217.0,0.057871]
[1644570519160,0.3858,43230.0,43217.0,0.057871]
[1644570519397,0.61521629,43236.0,43217.0,0.057871]
[1644570519398,0.48753101,43233.0,43217.0,0.057871]
[1644570519600,0.48753101,43233.0,43219.0,0.057866]
[1644570519601,0.05786577,43233.0,43219.0,0.057866]
[1644570519799,0.30166974,43224.0,43221.0,0.00063253]
[1644570519999,0.30166974,43224.0,43221.0,0.11635753]
[1644570520199,0.30166974,43224.0,43221.0,0.16635753]
[1644570520700,0.30166974,43224.0,43221.0,0.165725]
[1644570520899,0.30166974,43224.0,43222.0,0.11572]
[1644570521099,0.30166974,43224.0,43222.0,0.057861]
[1644570521901,0.30446881,43229.0,43223.0,0.0463]
[1644570522103,0.19505303,43233.0,43223.0,0.10408548]
[1644570522304,0.19505303,43237.0,43226.0,0.057857]
[1644570522502,0.25290986,43238.0,43227.0,0.0463]
[1644570522701,0.25290986,43238.0,43228.0,0.0463]
[1644570522906,0.25290986,43238.0,43229.0,0.0463]
[1644570523156,0.35144806,43233.0,43229.0,0.0463]
[1644570523352,0.19505303,43238.0,43232.0,0.057854]
[1644570523552,0.19594103,43239.0,43233.0,0.0463]
[1644570524358,0.19505303,43239.0,43233.0,0.0463]
[1644570524558,0.19594207,43239.0,43233.0,0.0463]
[1644570524756,0.19594207,43239.0,43234.0,0.057851]
[1644570525057,0.00065122,43239.0,43234.0,0.057851]
[1644570525459,0.60598845,43240.0,43234.0,0.057851]
[1644570525655,0.60575063,43240.0,43234.0,0.057851]
[1644570525856,0.00065122,43239.0,43234.0,0.057851]
[1644570526657,0.60598845,43240.0,43234.0,0.057851]
[1644570526898,0.00065122,43239.0,43234.0,0.057851]
[1644570527497,0.00065122,43239.0,43234.0,0.115697]
[1644570527696,0.00065122,43239.0,43235.0,0.05]
[1644570527899,0.03,43243.0,43236.0,0.057847]
[1644570527900,0.00023782,43240.0,43236.0,0.057847]
[1644570528101,0.0580884,43241.0,43236.0,0.057847]
[1644570528297,0.00065115,43239.0,43236.0,0.057847]
[1644570528698,0.26903408,43238.0,43236.0,0.057847]
[1644570528899,0.9140243,43238.0,43234.0,0.05]
[1644570529300,0.97188056,43238.0,43234.0,0.057853]
[1644570529501,0.97188056,43238.0,43235.0,0.05]
[1644570529701,0.9140243,43238.0,43234.0,0.057853]
[1644570530950,0.07221934,43235.0,43234.0,0.057853]
[1644570532154,0.9140243,43238.0,43234.0,0.057853]
[1644570532855,0.322991,43237.0,43232.0,0.05849037]
[1644570533057,0.322991,43237.0,43232.0,0.00063237]
[1644570533058,0.68437339,43236.0,43232.0,0.00063237]
[1644570533258,0.322991,43235.0,43232.0,0.00063237]
[1644570533554,0.40211773,43235.0,43232.0,0.00063237]
[1644570534054,0.39039702,43225.0,43221.0,0.11573]
[1644570534254,0.24492951,43231.0,43221.0,0.11573]
[1644570534255,0.05786484,43231.0,43221.0,0.11573]
[1644570534509,0.3604,43237.0,43222.0,0.104164]
[1644570535006,0.3604,43237.0,43222.0,0.1463]
[1644570535205,0.3604,43237.0,43226.0,0.27309901]
[1644570535206,0.27658837,43235.0,43226.0,0.27309901]
[1644570535410,0.3604,43237.0,43229.0,0.057849]
[1644570535605,0.00046171,43239.0,43230.0,0.057846]
[1644570536408,0.20126499,43241.0,43230.0,0.057846]
[1644570536608,0.00046177,43239.0,43230.0,0.057846]
[1644570536808,0.00046177,43239.0,43232.0,0.057847]
[1644570536809,0.30483257,43239.0,43232.0,0.057847]
[1644570537008,0.30483257,43239.0,43234.0,0.057849]
[1644570537009,0.00046177,43239.0,43234.0,0.057849]
[1644570537609,0.31066753,43240.0,43234.0,0.057849]
[1644570537809,0.00046179,43239.0,43234.0,0.057849]
[1644570538009,0.00046179,43239.0,43234.0,0.115698]
[1644570538460,0.07519181,43238.0,43234.0,0.115698]
[1644570538658,0.40325656,43237.0,43234.0,0.115698]
[1644570538856,0.40325656,43237.0,43235.0,0.05]
[1644570539256,0.40325656,43237.0,43234.0,0.107849]
[1644570539857,0.40325656,43237.0,43234.0,0.057849]
[1644570540257,0.2602707,43236.0,43234.0,0.057849]
[1644570540855,0.2602707,43236.0,43234.0,0.107849]
[1644570541258,0.26020094,43236.0,43234.0,0.107849]
[1644570541456,0.32735066,43236.0,43234.0,0.107849]
[1644570543500,0.32735066,43236.0,43234.0,0.06013081]
[1644570543901,0.25478056,43235.0,43234.0,0.06013081]
[1644570545201,0.57777156,43235.0,43234.0,0.06013081]
[1644570545406,0.322991,43234.0,43232.0,0.00063341]
[1644570545673,0.25564147,43231.0,43228.0,0.05745941]
[1644570545867,0.36786643,43230.0,43228.0,0.05745941]
[1644570546069,0.36786643,43230.0,43216.0,0.42550046]
[1644570546268,0.33447184,43222.0,43216.0,0.42550046]
[1644570546468,0.4118209,43226.0,43219.0,0.057866]
[1644570546668,0.4118209,43226.0,43220.0,0.057865]
[1644570546871,0.4118209,43226.0,43220.0,0.107865]
[1644570547568,0.4118209,43226.0,43221.0,0.00019007]
[1644570547569,0.19239539,43224.0,43221.0,0.00019007]
[1644570547770,0.309461,43222.0,43221.0,0.00019007]
[1644570548570,0.19239539,43224.0,43220.0,0.107865]
[1644570548571,0.19239539,43224.0,43220.0,0.057865]
[1644570549606,0.30255955,43223.0,43220.0,0.057865]
[1644570549905,0.30255955,43223.0,43220.0,0.05849701]
[1644570550105,0.4118209,43226.0,43220.0,0.05849701]
[1644570550106,0.34638154,43226.0,43220.0,0.05849701]
[1644570550306,0.11573227,43232.0,43220.0,0.05849701]
[1644570551006,0.11573227,43232.0,43223.0,0.00063196]
[1644570551208,0.34900584,43230.0,43223.0,0.00063196]
[1644570551413,0.8371777,43230.0,43224.0,0.057862]
[1644570551806,0.8371777,43230.0,43224.0,0.107862]
[1644570552007,0.7793155,43230.0,43224.0,0.107862]
[1644570552207,0.7793155,43230.0,43225.0,0.00063193]
[1644570552609,0.7793155,43230.0,43226.0,0.057865]
[1644570553162,0.0578633,43229.0,43226.0,0.057865]
[1644570553456,0.3845,43235.0,43226.0,0.11635192]
[1644570553653,0.00069645,43237.0,43229.0,0.057851]
[1644570554252,0.31125353,43234.0,43229.0,0.057851]
[1644570554653,0.31125353,43234.0,43230.0,0.00063186]
[1644570555054,0.00069651,43237.0,43230.0,0.05848286]
[1644570555257,0.00069651,43237.0,43232.0,0.057849]
[1644570555455,0.00069651,43237.0,43233.0,0.0463]
[1644570555956,0.00069651,43237.0,43234.0,0.057845]
[1644570555957,0.00069653,43237.0,43234.0,0.057845]
[1644570556156,0.00069653,43237.0,43235.0,0.0463]
[1644570556354,0.00069653,43237.0,43235.0,0.0963]
[1644570556998,0.00023782,43242.0,43235.0,0.0963]
[1644570557200,0.34286531,43243.0,43235.0,0.0963]
[1644570557201,0.00069652,43238.0,43235.0,0.0963]
[1644570557797,0.00069652,43238.0,43236.0,0.057844]
[1644570557999,0.00023782,43240.0,43237.0,0.0463]
[1644570558197,0.26642152,43241.0,43237.0,0.0963]
[1644570558398,0.00069652,43239.0,43237.0,0.0963]
[1644570559200,0.26665934,43241.0,43237.0,0.0963]
[1644570559400,0.26642152,43241.0,43237.0,0.083254]
[1644570559597,0.00069651,43240.0,43238.0,0.05566208]
[1644570560398,0.26642152,43241.0,43238.0,0.05566208]
[1644570560851,0.26711803,43241.0,43238.0,0.05566208]
[1644570561053,0.32496455,43241.0,43238.0,0.05566208]
[1644570561651,0.32426804,43241.0,43238.0,0.05566208]
[1644570563053,0.05784652,43241.0,43238.0,0.05566208]
[1644570563256,0.00069651,43242.0,43238.0,0.05566208]
[1644570563455,0.00069651,43242.0,43239.0,0.0463]
[1644570563855,0.0001696,43242.0,43239.0,0.0963]
[1644570564254,0.00023782,43245.0,43244.0,0.03722622]
[1644570564507,0.58237001,43246.0,43244.0,0.0463]
[1644570564704,0.28888416,43246.0,43244.0,0.0463]
[1644570564906,0.00023782,43248.0,43244.0,0.0963]
[1644570565107,0.3,43249.0,43244.0,0.0963]
[1644570565305,0.30023782,43249.0,43244.0,0.0463]
[1644570565509,0.00045931,43248.0,43244.0,0.0463]
[1644570565707,0.19588635,43248.0,43244.0,0.0463]
[1644570566105,0.19588635,43248.0,43244.0,0.104127]
[1644570566307,0.31139918,43247.0,43244.0,0.104127]
[1644570566506,0.50682622,43247.0,43244.0,0.104127]
[1644570566706,0.50682622,43247.0,43244.0,0.154127]
[1644570566906,0.31139918,43247.0,43245.0,0.057829]
[1644570567109,0.31139918,43247.0,43246.0,0.0463]
[1644570567307,0.31139918,43247.0,43246.0,0.0671836]
[1644570568349,0.19542704,43248.0,43246.0,0.0671836]
[1644570568949,0.19542704,43249.0,43247.0,0.057826]
[1644570569150,0.19608962,43249.0,43248.0,0.0463]
[1644570569755,0.00066258,43249.0,43248.0,0.0463]
[1644570569950,0.00066258,43249.0,43248.0,0.0963]
[1644570570151,0.00355032,43259.0,43249.0,0.9]
[1644570570352,0.00355032,43259.0,43250.0,0.15411]
[1644570570550,0.00066257,43251.0,43250.0,0.20411]
[1644570570751,0.00066257,43251.0,43250.0,0.73060547]
[1644570570948,0.00066257,43251.0,43250.0,0.48613899]
[1644570571149,0.00066257,43251.0,43250.0,0.70175799]
[1644570571351,0.00355032,43259.0,43250.0,0.58614099]
[1644570571549,0.00355032,43259.0,43252.0,0.057807]
[1644570571749,0.00355032,43259.0,43253.0,0.0463]
[1644570572003,0.00355032,43259.0,43253.0,0.204108]
[1644570572206,0.00355032,43259.0,43254.0,0.05780539]
[1644570572408,0.00355032,43259.0,43255.0,0.44061885]
[1644570572603,0.00355032,43259.0,43255.0,0.49061885]
[1644570572805,0.00065146,43258.0,43255.0,0.49061885]
[1644570573204,0.03830893,43264.0,43255.0,0.49061885]
[1644570573606,0.03830893,43264.0,43258.0,0.057804]
[1644570573807,0.03830893,43264.0,43259.0,0.0463]
[1644570574407,0.32018457,43262.0,43259.0,0.0463]
[1644570574807,0.03830893,43264.0,43259.0,0.161906]
[1644570576455,0.02900534,43264.0,43259.0,0.161906]
[1644570576856,0.02400534,43264.0,43259.0,0.161906]
[1644570577255,0.02330893,43264.0,43259.0,0.161906]
[1644570577661,0.02400534,43264.0,43259.0,0.21163167]
[1644570577857,0.02400534,43264.0,43260.0,0.115586]
[1644570578057,0.02400534,43264.0,43261.0,0.161877]
[1644570578357,0.02400534,43264.0,43261.0,0.211877]
[1644570578556,0.02330893,43264.0,43261.0,0.211877]
[1644570578957,0.02330893,43264.0,43261.0,0.269666]
[1644570579400,0.00069641,43265.0,43261.0,0.269666]
[1644570579799,0.01,43269.0,43264.0,0.057788]
[1644570580000,0.00066149,43265.0,43264.0,0.17336225]
[1644570580309,0.00066149,43265.0,43264.0,0.104088]
[1644570580507,0.00066149,43265.0,43263.0,0.057788]
[1644570580901,0.01,43269.0,43263.0,0.057788]
[1644570581302,0.29438371,43264.0,43263.0,0.057788]
[1644570581504,0.00066148,43266.0,43263.0,0.057788]
[1644570582203,0.01,43269.0,43263.0,0.107788]
[1644570582403,0.00066148,43267.0,43263.0,0.107788]
[1644570582703,0.28890336,43266.0,43265.0,0.05]
[1644570583550,0.28890336,43266.0,43263.0,0.057788]
[1644570583750,0.28890336,43266.0,43265.0,0.05]
[1644570583950,0.28890336,43266.0,43263.0,0.057788]
[1644570584953,0.30538232,43264.0,43263.0,0.057788]
[1644570585754,0.56865458,43264.0,43263.0,0.057788]
[1644570585954,0.56865458,43264.0,43255.0,0.0005445]
[1644570586156,0.29614799,43256.0,43255.0,0.0005445]
[1644570586901,0.20374803,43262.0,43247.0,0.221089]
[1644570586902,0.32641016,43257.0,43251.0,0.115639]
[1644570587102,0.32641016,43257.0,43253.0,0.00054132]
[1644570587304,0.00090323,43260.0,43253.0,0.00054132]
[1644570587504,0.00023726,43259.0,43253.0,0.00054132]
[1644570587702,0.00066597,43260.0,43253.0,0.00054132]
[1644570587908,0.00023726,43259.0,43253.0,0.00054132]
[1644570588207,0.00066597,43260.0,43253.0,0.00054132]
[1644570588502,0.00023726,43259.0,43254.0,0.05835632]
[1644570588702,0.00066598,43260.0,43254.0,0.22397832]
[1644570588902,0.00090324,43260.0,43254.0,0.16616332]
[1644570589102,0.00066598,43260.0,43254.0,0.16616332]
[1644570589302,0.00023726,43261.0,43254.0,0.165622]
[1644570589502,0.00066599,43260.0,43255.0,0.00054131]
[1644570590104,0.00066599,43260.0,43256.0,0.057811]
[1644570590302,0.00066599,43260.0,43257.0,0.057814]
[1644570590657,0.30415291,43262.0,43257.0,0.057814]
[1644570590856,0.34134863,43259.0,43257.0,0.057814]
[1644570592857,0.33634863,43259.0,43257.0,0.057814]
[1644570594057,0.00023726,43261.0,43257.0,0.057814]
[1644570594260,0.18345164,43269.0,43261.0,0.00067342]
[1644570594261,0.00023726,43262.0,43261.0,0.00067342]
[1644570594508,0.01,43269.0,43260.0,0.057807]
[1644570594509,0.00023726,43264.0,43260.0,0.057807]
[1644570594710,0.00023726,43268.0,43260.0,0.057807]
[1644570594911,0.01,43269.0,43261.0,0.057806]
[1644570595112,0.32064736,43267.0,43261.0,0.057806]
[1644570595509,0.32155074,43267.0,43260.0,0.107807]
[1644570596310,0.32155074,43267.0,43261.0,0.057807]
[1644570596511,0.32088462,43267.0,43261.0,0.057807]
[1644570596912,0.00066612,43266.0,43261.0,0.057807]
[1644570597715,0.32088462,43267.0,43261.0,0.057807]
[1644570597913,0.00066613,43266.0,43261.0,0.057807]
[1644570599057,0.32088462,43267.0,43261.0,0.057807]
[1644570599258,0.00066613,43266.0,43261.0,0.057807]
[1644570600259,0.00023726,43267.0,43261.0,0.057807]
[1644570600458,0.37353733,43262.0,43260.0,0.107807]
[1644570600660,0.00066613,43266.0,43260.0,0.107807]
[1644570600858,0.00023726,43265.0,43261.0,0.057807]
[1644570601058,0.00066613,43266.0,43261.0,0.057807]
[1644570601258,0.00023726,43266.0,43261.0,0.057807]
[1644570601464,0.00023726,43267.0,43260.0,0.057807]
[1644570601662,0.35362981,43264.0,43260.0,0.057807]
[1644570602609,0.35362981,43264.0,43261.0,0.057809]
[1644570603208,0.35272981,43264.0,43261.0,0.057809]
[1644570603610,0.4412577,43264.0,43261.0,0.057809]
[1644570603809,0.35272981,43264.0,43261.0,0.057809]
[1644570604512,0.35272981,43264.0,43259.0,0.057816]
[1644570604716,0.35272981,43264.0,43246.0,0.5]
[1644570604717,0.05,43260.0,43246.0,0.5]
[1644570604914,0.28804796,43256.0,43248.0,0.5]
[1644570605112,0.28304796,43256.0,43248.0,0.5]
[1644570605312,0.2898861,43253.0,43248.0,0.5]
[1644570605511,0.25475882,43251.0,43248.0,0.5]
[1644570605957,0.2898861,43253.0,43245.0,0.057832]
[1644570606357,0.2898861,43253.0,43247.0,0.0006445]
[1644570607159,0.40554922,43253.0,43247.0,0.0006445]
[1644570607359,0.40554922,43253.0,43245.0,0.057832]
[1644570607558,0.40554922,43253.0,43248.0,0.00064449]
[1644570607764,0.3288961,43249.0,43248.0,0.00064449]
[1644570608360,0.6518871,43249.0,43248.0,0.00064449]
[1644570608559,0.6518871,43249.0,43238.0,0.11567]
[1644570608860,0.3288961,43249.0,43238.0,0.11567]
[1644570609061,0.34101049,43244.0,43238.0,0.11567]
[1644570609702,0.34101049,43244.0,43241.0,0.05784]
[1644570610305,0.39462679,43249.0,43241.0,0.05784]
[1644570610503,0.05784053,43247.0,43241.0,0.05784]
[1644570611102,0.05784053,43247.0,43242.0,0.00064362]
[1644570611302,0.28710378,43247.0,43242.0,0.00064362]
[1644570611503,0.39462679,43249.0,43243.0,0.057838]
[1644570611705,0.3288961,43249.0,43243.0,0.057838]
[1644570612302,0.3288961,43249.0,43244.0,0.00064359]
[1644570612703,0.3288961,43249.0,43244.0,0.05848159]
[1644570612905,0.31083365,43248.0,43244.0,0.05848159]
[1644570613373,0.31083365,43248.0,43244.0,0.057838]
[1644570613572,0.31083365,43248.0,43244.0,0.05848159]
[1644570613775,0.05783323,43253.0,43244.0,0.05848159]
[1644570614287,0.157835,43255.0,43244.0,0.05848159]
[1644570614288,0.05783094,43254.0,43244.0,0.05848159]
[1644570614673,0.05783094,43254.0,43244.0,0.057838]
[1644570614874,0.31258778,43252.0,43246.0,0.00064355]
[1644570615075,0.31258778,43252.0,43246.0,0.05847455]
[1644570615275,0.05783094,43254.0,43246.0,0.10847455]
[1644570615475,0.05,43255.0,43246.0,0.10847455]
[1644570615874,0.52956481,43256.0,43246.0,0.107831]
[1644570616075,0.52956481,43256.0,43249.0,0.057826]
[1644570616275,0.00023726,43256.0,43249.0,0.057826]
[1644570616482,0.05782755,43257.0,43249.0,0.057826]
[1644570616483,0.27019957,43257.0,43249.0,0.057826]
[1644570616675,0.00023726,43256.0,43249.0,0.115648]
[1644570616907,0.00023726,43257.0,43249.0,0.057826]
[1644570617105,0.21150556,43261.0,43249.0,0.057826]
[1644570617106,0.00023726,43260.0,43249.0,0.057826]
[1644570617305,0.54805977,43261.0,43253.0,0.057822]
[1644570617506,0.00023726,43260.0,43253.0,0.057822]
[1644570617708,0.00023726,43260.0,43253.0,0.107822]
[1644570617907,0.21150556,43261.0,43253.0,0.107822]
[1644570618106,0.00023726,43260.0,43253.0,0.107822]
[1644570618306,0.21150556,43261.0,43253.0,0.107822]
[1644570618510,0.40455263,43260.0,43255.0,0.05782]
[1644570618706,0.00023726,43261.0,43255.0,0.10782]
[1644570618907,0.00023726,43264.0,43255.0,0.10782]
[1644570619108,0.00023726,43265.0,43255.0,0.10782]
[1644570619309,0.00023726,43264.0,43255.0,0.10782]
[1644570619611,0.38670816,43263.0,43257.0,0.00064339]
[1644570619809,0.63717671,43263.0,43258.0,0.057818]
[1644570620007,0.00023726,43263.0,43258.0,0.057818]
[1644570620211,0.1,43271.0,43258.0,0.057818]
[1644570620212,0.00023726,43264.0,43258.0,0.107818]
[1644570620410,0.00023726,43265.0,43258.0,0.107818]
[1644570620670,0.00023726,43267.0,43260.0,0.057806]
[1644570620862,0.00023726,43268.0,43260.0,0.057806]
[1644570621060,0.3515923,43267.0,43260.0,0.104106]
[1644570621260,0.3403731,43266.0,43260.0,0.057806]
[1644570621663,0.07455114,43261.0,43260.0,0.057806]
[1644570621861,0.34061036,43266.0,43260.0,0.057806]
[1644570621862,0.00023726,43265.0,43260.0,0.057806]
[1644570622061,0.322991,43264.0,43260.0,0.00064432]
[1644570622263,0.34061036,43266.0,43260.0,0.00064432]
[1644570622468,0.32322826,43265.0,43260.0,0.00064432]
[1644570622661,0.322991,43265.0,43260.0,0.00064432]
[1644570623060,0.05781737,43263.0,43254.0,0.0463]
[1644570623261,0.05781737,43263.0,43260.0,0.00064432]
[1644570623464,0.05781737,43263.0,43260.0,0.05846432]
[1644570623465,0.00023726,43263.0,43260.0,0.05846432]
[1644570623662,0.00023726,43265.0,43260.0,0.05846432]
[1644570623864,0.59521511,43266.0,43260.0,0.05846432]
[1644570624406,0.65302891,43266.0,43260.0,0.05782]
[1644570624608,0.65302891,43266.0,43260.0,0.05846432]
[1644570625608,0.59521511,43266.0,43260.0,0.05782]
[1644570625807,0.59521511,43266.0,43260.0,0.05846432]
[1644570626208,0.34061036,43266.0,43260.0,0.05846432]
[1644570627109,0.65138698,43266.0,43260.0,0.05846432]
[1644570628007,0.65138698,43266.0,43260.0,0.05782]
[1644570628265,0.65138698,43266.0,43260.0,0.05846432]
[1644570629068,0.34061036,43266.0,43260.0,0.05782]
[1644570629367,0.00023726,43267.0,43260.0,0.05846432]
[1644570629564,0.00069635,43268.0,43260.0,0.05846432]
[1644570629565,0.00093361,43268.0,43260.0,0.05846432]
[1644570629765,0.00023726,43267.0,43260.0,0.05846432]
[1644570630169,0.31076635,43266.0,43260.0,0.05846432]
[1644570630367,0.31076635,43266.0,43260.0,0.05782]
[1644570630565,0.31076635,43266.0,43260.0,0.11627332]
[1644570632716,0.31076635,43266.0,43260.0,0.115629]
[1644570632913,0.31076635,43266.0,43260.0,0.11627332]
[1644570633416,0.31076635,43266.0,43260.0,0.05846432]
[1644570634013,0.31076635,43266.0,43260.0,0.05782]
[1644570634214,0.31076635,43266.0,43260.0,0.05846432]
[1644570634615,0.31100361,43266.0,43260.0,0.05846432]
[1644570635221,0.31100361,43266.0,43260.0,0.05782]
[1644570635422,0.36881651,43266.0,43260.0,0.05846432]
[1644570635660,0.36857925,43266.0,43260.0,0.05846432]
[1644570636253,0.36857925,43266.0,43260.0,0.05782]
[1644570636453,0.39133704,43261.0,43260.0,0.05782]
[1644570636655,0.05781734,43263.0,43260.0,0.00064432]
[1644570636853,0.00023726,43265.0,43261.0,0.057816]
[1644570637053,0.25713724,43265.0,43261.0,0.057816]
[1644570637658,0.37277059,43265.0,43261.0,0.057816]